[Event "*** Titled Tuesday Blitz"]
[Site "Chess.com"]
[Date "2018.04.03"]
[Round "9"]
[White "SergeiAza"]
[Black "eldur16"]
[Result "0-1"]
[WhiteElo "2659"]
[BlackElo "2582"]
[TimeControl "180+2"]
[EndTime "15:00:33 PDT"]
[Termination "eldur16 won by resignation"]

1. e4 {[%clk 0:03:01.9]} 1... e5 {[%clk 0:03:00]} 2. Nf3 {[%clk 0:03:02.8]} 2...
Nc6 {[%clk 0:03:00.9]} 3. Bb5 {[%clk 0:03:03.9]} 3... a6 {[%clk 0:03:01.1]} 4.
Ba4 {[%clk 0:03:04.3]} 4... Nf6 {[%clk 0:03:01.9]} 5. O-O {[%clk 0:03:05.9]}
5... Be7 {[%clk 0:03:02.9]} 6. Re1 {[%clk 0:03:07.5]} 6... b5 {[%clk 0:03:03.5]}
7. Bb3 {[%clk 0:03:09.1]} 7... d6 {[%clk 0:03:04.6]} 8. c3 {[%clk 0:03:10.6]}
8... O-O {[%clk 0:03:04.7]} 9. h3 {[%clk 0:03:12.1]} 9... Na5 {[%clk 0:03:05.3]}
10. Bc2 {[%clk 0:03:13.1]} 10... c5 {[%clk 0:03:06.2]} 11. d4 {[%clk 0:03:14.7]}
11... Qc7 {[%clk 0:03:07.1]} 12. d5 {[%clk 0:03:15.7]} 12... Nc4 {[%clk
0:03:04.9]} 13. b3 {[%clk 0:03:15.7]} 13... Nb6 {[%clk 0:03:05.4]} 14. Nbd2
{[%clk 0:03:17.2]} 14... c4 {[%clk 0:03:03.2]} 15. bxc4 {[%clk 0:02:35.2]} 15...
Nxc4 {[%clk 0:03:03.3]} 16. Nxc4 {[%clk 0:02:35.8]} 16... Qxc4 {[%clk
0:03:02.9]} 17. Bd2 {[%clk 0:02:30.4]} 17... Bd7 {[%clk 0:03:01.8]} 18. Bd3
{[%clk 0:02:27.1]} 18... Qc7 {[%clk 0:03:01.6]} 19. Qe2 {[%clk 0:02:24.4]} 19...
Rfc8 {[%clk 0:02:59]} 20. Rec1 {[%clk 0:02:24.9]} 20... Rab8 {[%clk 0:02:37.8]}
21. Be3 {[%clk 0:02:21.5]} 21... g6 {[%clk 0:02:31.9]} 22. Nd2 {[%clk
0:02:21.4]} 22... Nh5 {[%clk 0:02:29.4]} 23. c4 {[%clk 0:02:18.5]} 23... Qd8
{[%clk 0:02:24.4]} 24. cxb5 {[%clk 0:02:12.7]} 24... axb5 {[%clk 0:02:23.1]} 25.
Nb3 {[%clk 0:01:56.7]} 25... Rxc1+ {[%clk 0:02:07.6]} 26. Rxc1 {[%clk
0:01:56.3]} 26... Bg5 {[%clk 0:02:08.2]} 27. Kh2 {[%clk 0:01:44.2]} 27... Bxe3
{[%clk 0:02:00.7]} 28. Qxe3 {[%clk 0:01:42.7]} 28... Nf4 {[%clk 0:02:01.4]} 29.
Bf1 {[%clk 0:01:42.7]} 29... Ra8 {[%clk 0:01:59.2]} 30. g3 {[%clk 0:01:37.7]}
30... Nh5 {[%clk 0:01:58.3]} 31. Rc2 {[%clk 0:01:35.4]} 31... Kg7 {[%clk
0:01:33.7]} 32. Be2 {[%clk 0:01:30.6]} 32... Nf6 {[%clk 0:01:33.8]} 33. Bf3
{[%clk 0:01:18.2]} 33... h5 {[%clk 0:01:27.3]} 34. Nc1 {[%clk 0:00:53]} 34...
Ra4 {[%clk 0:01:23.8]} 35. Nb3 {[%clk 0:00:32]} 35... Qa8 {[%clk 0:01:15.7]} 36.
Qe2 {[%clk 0:00:29.7]} 36... Qa7 {[%clk 0:01:10.5]} 37. Bg2 {[%clk 0:00:29.3]}
37... h4 {[%clk 0:00:59.7]} 38. g4 {[%clk 0:00:27.9]} 38... Nh7 {[%clk
0:00:50.7]} 39. Qe3 {[%clk 0:00:22.2]} 39... Qxe3 {[%clk 0:00:45]} 40. fxe3
{[%clk 0:00:23.4]} 40... Ng5 {[%clk 0:00:41.8]} 41. Nd2 {[%clk 0:00:22.8]} 41...
Ra3 {[%clk 0:00:39.3]} 42. Kg1 {[%clk 0:00:20.2]} 42... Rxe3 {[%clk 0:00:36.2]}
43. Rc7 {[%clk 0:00:19.9]} 43... Be8 {[%clk 0:00:30.5]} 44. Rc8 {[%clk
0:00:18.9]} 44... Kf8 {[%clk 0:00:30.8]} 45. Bf1 {[%clk 0:00:17.1]} 45... Ke7
{[%clk 0:00:29.7]} 46. Rc7+ {[%clk 0:00:14]} 46... Kd8 {[%clk 0:00:30.3]} 47.
Rb7 {[%clk 0:00:12.6]} 47... Nxh3+ {[%clk 0:00:29.6]} 48. Kh2 {[%clk 0:00:12.2]}
48... Nf2 {[%clk 0:00:24]} 49. Nb3 {[%clk 0:00:02.7]} 49... Nxg4+ {[%clk
0:00:23.7]} 50. Kg1 {[%clk 0:00:03.2]} 50... h3 {[%clk 0:00:23.5]} 51. Bxh3
{[%clk 0:00:02.2]} 51... Rxh3 {[%clk 0:00:23.4]} 52. Na5 {[%clk 0:00:04.1]}
52... Ra3 {[%clk 0:00:21.2]} 53. Nc6+ {[%clk 0:00:04.5]} 53... Bxc6 {[%clk
0:00:21.6]} 54. dxc6 {[%clk 0:00:06.4]} 54... Rxa2 {[%clk 0:00:21.4]} 55. Rd7+
{[%clk 0:00:06.4]} 55... Kc8 {[%clk 0:00:20.5]} 56. Rxf7 {[%clk 0:00:08.3]}
56... b4 {[%clk 0:00:19.5]} 0-1

[Event "*** Titled Tuesday Blitz"]
[Site "Chess.com"]
[Date "2018.04.03"]
[Round "9"]
[White "RojonR"]
[Black "abubakrtagelsir"]
[Result "0-1"]
[WhiteElo "2374"]
[BlackElo "2266"]
[TimeControl "180+2"]
[EndTime "15:01:03 PDT"]
[Termination "abubakrtagelsir won by resignation"]

1. e4 {[%clk 0:03:01.9]} 1... d6 {[%clk 0:03:00.4]} 2. d4 {[%clk 0:03:02]} 2...
Nf6 {[%clk 0:03:00.6]} 3. Nc3 {[%clk 0:03:00.2]} 3... g6 {[%clk 0:03:00.9]} 4.
g3 {[%clk 0:02:57.4]} 4... Bg7 {[%clk 0:03:00.6]} 5. Bg2 {[%clk 0:02:58.8]} 5...
O-O {[%clk 0:03:01.7]} 6. Nge2 {[%clk 0:03:00.2]} 6... e5 {[%clk 0:03:02.8]} 7.
O-O {[%clk 0:03:00.9]} 7... c6 {[%clk 0:03:03.7]} 8. h3 {[%clk 0:02:59.2]} 8...
b5 {[%clk 0:03:03.6]} 9. a3 {[%clk 0:02:56.9]} 9... Nbd7 {[%clk 0:03:04]} 10.
Be3 {[%clk 0:02:49.4]} 10... Re8 {[%clk 0:03:02.7]} 11. d5 {[%clk 0:02:43.9]}
11... cxd5 {[%clk 0:03:01.6]} 12. Nxd5 {[%clk 0:02:45]} 12... a6 {[%clk
0:02:57.2]} 13. Nec3 {[%clk 0:02:14.2]} 13... Bb7 {[%clk 0:02:55.7]} 14. a4
{[%clk 0:02:08.9]} 14... Nxd5 {[%clk 0:02:54.3]} 15. Nxd5 {[%clk 0:02:09.1]}
15... Bxd5 {[%clk 0:02:53]} 16. Qxd5 {[%clk 0:02:09.1]} 16... Nf6 {[%clk
0:02:53.7]} 17. Qd2 {[%clk 0:01:52.9]} 17... Qb8 {[%clk 0:02:52.5]} 18. axb5
{[%clk 0:01:51.3]} 18... axb5 {[%clk 0:02:51.6]} 19. Rxa8 {[%clk 0:01:50.7]}
19... Qxa8 {[%clk 0:02:52.2]} 20. Qxd6 {[%clk 0:01:45.6]} 20... Qa2 {[%clk
0:02:45.6]} 21. Qb4 {[%clk 0:01:38.6]} 21... Qc4 {[%clk 0:02:43]} 22. Qxc4
{[%clk 0:01:37.2]} 22... bxc4 {[%clk 0:02:43.9]} 23. b3 {[%clk 0:01:28.3]} 23...
cxb3 {[%clk 0:02:39.2]} 24. cxb3 {[%clk 0:01:30.2]} 24... Rb8 {[%clk 0:02:40.1]}
25. Rb1 {[%clk 0:01:28.8]} 25... Bf8 {[%clk 0:02:39.7]} 26. f3 {[%clk
0:01:19.6]} 26... Nd7 {[%clk 0:02:40.1]} 27. Bf1 {[%clk 0:01:15.4]} 27... Bb4
{[%clk 0:02:34]} 28. Rd1 {[%clk 0:01:07.4]} 28... Nc5 {[%clk 0:02:32.7]} 29. Bc4
{[%clk 0:01:07]} 29... Ba3 {[%clk 0:02:25.3]} 30. Kg2 {[%clk 0:00:58.4]} 30...
Rb7 {[%clk 0:02:21.6]} 31. Ra1 {[%clk 0:00:49.7]} 31... Bb4 {[%clk 0:02:14.9]}
32. Bh6 {[%clk 0:00:50]} 32... Rb8 {[%clk 0:02:12.2]} 33. Ra7 {[%clk 0:00:48.5]}
33... Ne6 {[%clk 0:02:10.7]} 34. f4 {[%clk 0:00:36.9]} 34... exf4 {[%clk
0:02:01.6]} 35. gxf4 {[%clk 0:00:37.8]} 35... Bf8 {[%clk 0:02:01.6]} 36. Bxf8
{[%clk 0:00:30.4]} 36... Kxf8 {[%clk 0:01:59.1]} 37. f5 {[%clk 0:00:28.2]} 37...
Nd8 {[%clk 0:01:50.7]} 38. f6 {[%clk 0:00:22.1]} 38... Rb7 {[%clk 0:01:43.9]}
39. Ra8 {[%clk 0:00:20.6]} 39... Ke8 {[%clk 0:01:44.9]} 40. Kf3 {[%clk
0:00:20.4]} 40... Kd7 {[%clk 0:01:45.7]} 41. Bd5 {[%clk 0:00:19]} 41... Rb6
{[%clk 0:01:43.9]} 42. Ra7+ {[%clk 0:00:18.3]} 42... Kd6 {[%clk 0:01:40.2]} 43.
Re7 {[%clk 0:00:12.4]} 43... Ne6 {[%clk 0:01:23.9]} 44. Bxe6 {[%clk 0:00:13.2]}
44... fxe6 {[%clk 0:01:23.7]} 45. Rf7 {[%clk 0:00:12.6]} 45... Ke5 {[%clk
0:01:21.6]} 46. Rxh7 {[%clk 0:00:08.5]} 46... Rxb3+ {[%clk 0:01:21.6]} 47. Kg4
{[%clk 0:00:09.5]} 47... Kxf6 {[%clk 0:01:22.4]} 48. Kf4 {[%clk 0:00:09]} 48...
e5+ {[%clk 0:01:16.3]} 49. Kg4 {[%clk 0:00:10.1]} 49... Re3 {[%clk 0:01:17.3]}
50. Ra7 {[%clk 0:00:11]} 50... Rxe4+ {[%clk 0:01:16.6]} 51. Kf3 {[%clk
0:00:12.5]} 51... Rf4+ {[%clk 0:01:16.9]} 52. Kg3 {[%clk 0:00:12.7]} 52... Rd4
{[%clk 0:01:16.9]} 53. Ra6+ {[%clk 0:00:13]} 53... Kg5 {[%clk 0:01:14.7]} 54.
Ra3 {[%clk 0:00:13.2]} 54... Kf5 {[%clk 0:01:07.9]} 55. Rf3+ {[%clk 0:00:12.8]}
55... Rf4 {[%clk 0:01:05.1]} 56. Ra3 {[%clk 0:00:13.6]} 56... Rd4 {[%clk
0:01:02.9]} 57. Rf3+ {[%clk 0:00:14]} 57... Ke4 {[%clk 0:00:55.1]} 58. Rf6
{[%clk 0:00:13.9]} 58... Kd3 {[%clk 0:00:54.6]} 59. Rxg6 {[%clk 0:00:14.1]}
59... e4 {[%clk 0:00:55.8]} 60. h4 {[%clk 0:00:15.2]} 60... e3 {[%clk
0:00:56.5]} 61. h5 {[%clk 0:00:10]} 61... e2 {[%clk 0:00:56.9]} 62. Re6 {[%clk
0:00:09.6]} 62... Kd2 {[%clk 0:00:56.1]} 63. h6 {[%clk 0:00:09.7]} 63... e1=Q+
{[%clk 0:00:56.5]} 64. Rxe1 {[%clk 0:00:09.9]} 64... Kxe1 {[%clk 0:00:57.5]} 65.
h7 {[%clk 0:00:10.3]} 65... Rd8 {[%clk 0:00:58.3]} 66. Kg4 {[%clk 0:00:11.3]}
66... Rh8 {[%clk 0:00:59.1]} 67. Kg5 {[%clk 0:00:12.9]} 67... Rxh7 {[%clk
0:01:00.3]} 0-1

[Event "*** Titled Tuesday Blitz"]
[Site "Chess.com"]
[Date "2018.04.03"]
[Round "9"]
[White "Albertu"]
[Black "chesstatour"]
[Result "0-1"]
[WhiteElo "2220"]
[BlackElo "1988"]
[TimeControl "180+2"]
[EndTime "15:01:10 PDT"]
[Termination "chesstatour won by checkmate"]

1. e4 {[%clk 0:03:01.9]} 1... c6 {[%clk 0:02:58.7]} 2. d4 {[%clk 0:03:02.2]}
2... d5 {[%clk 0:03:00.6]} 3. e5 {[%clk 0:03:02.6]} 3... c5 {[%clk 0:03:01.6]}
4. dxc5 {[%clk 0:03:01.9]} 4... Nc6 {[%clk 0:03:03.5]} 5. Bb5 {[%clk 0:03:01.4]}
5... e6 {[%clk 0:02:46.5]} 6. Be3 {[%clk 0:02:52.5]} 6... Bd7 {[%clk 0:02:38.8]}
7. Bxc6 {[%clk 0:02:48.8]} 7... Bxc6 {[%clk 0:02:23.6]} 8. Nf3 {[%clk
0:02:39.8]} 8... Ne7 {[%clk 0:02:11.3]} 9. c3 {[%clk 0:02:36.6]} 9... Nf5 {[%clk
0:02:11.5]} 10. Bd4 {[%clk 0:02:37.8]} 10... Bb5 {[%clk 0:01:05.5]} 11. a4
{[%clk 0:02:30.9]} 11... Bd7 {[%clk 0:00:51.8]} 12. O-O {[%clk 0:02:28.9]} 12...
Rc8 {[%clk 0:00:50.3]} 13. b4 {[%clk 0:02:19.9]} 13... b6 {[%clk 0:00:51]} 14.
cxb6 {[%clk 0:02:18.3]} 14... axb6 {[%clk 0:00:52.9]} 15. Qb3 {[%clk 0:02:16.6]}
15... Be7 {[%clk 0:00:53.3]} 16. Nbd2 {[%clk 0:01:59.7]} 16... O-O {[%clk
0:00:53.6]} 17. Rfb1 {[%clk 0:01:53]} 17... f6 {[%clk 0:00:40.8]} 18. a5 {[%clk
0:01:50.6]} 18... Nxd4 {[%clk 0:00:35.8]} 19. cxd4 {[%clk 0:01:49.5]} 19... Bb5
{[%clk 0:00:33.1]} 20. Qe3 {[%clk 0:01:41.1]} 20... f5 {[%clk 0:00:28.4]} 21.
axb6 {[%clk 0:01:39.2]} 21... Qxb6 {[%clk 0:00:28.6]} 22. g3 {[%clk 0:01:18.6]}
22... Rc2 {[%clk 0:00:28]} 23. Ne1 {[%clk 0:01:18.5]} 23... Rc7 {[%clk
0:00:26.4]} 24. Ng2 {[%clk 0:01:00]} 24... Rfc8 {[%clk 0:00:23.8]} 25. Ra3
{[%clk 0:00:35.8]} 25... Bc4 {[%clk 0:00:18.2]} 26. Qc3 {[%clk 0:00:18.7]} 26...
Ba2 {[%clk 0:00:15.6]} 27. Qb2 {[%clk 0:00:08.6]} 27... Bxb1 {[%clk 0:00:16.3]}
28. Ne3 {[%clk 0:00:07.1]} 28... Rc1+ {[%clk 0:00:15.5]} 29. Kg2 {[%clk
0:00:07.8]} 29... f4 {[%clk 0:00:15.1]} 30. gxf4 {[%clk 0:00:08.2]} 30... Bg6
{[%clk 0:00:14.6]} 31. Nb3 {[%clk 0:00:07.6]} 31... R1c3 {[%clk 0:00:14.2]} 32.
Nc5 {[%clk 0:00:06.8]} 32... Rxa3 {[%clk 0:00:14.8]} 33. Qxa3 {[%clk 0:00:07.9]}
33... Bxc5 {[%clk 0:00:15.7]} 34. dxc5 {[%clk 0:00:09.4]} 34... Qb5 {[%clk
0:00:16.1]} 35. Qa7 {[%clk 0:00:06.7]} 35... Be4+ {[%clk 0:00:16.2]} 36. Kg3
{[%clk 0:00:05.9]} 36... Qe2 {[%clk 0:00:14.9]} 37. Qd7 {[%clk 0:00:03.6]} 37...
Qf3+ {[%clk 0:00:15]} 38. Kh4 {[%clk 0:00:05]} 38... Qxf4+ {[%clk 0:00:15]} 39.
Kh3 {[%clk 0:00:05]} 39... Bf5+ {[%clk 0:00:14]} 40. Nxf5 {[%clk 0:00:05.1]}
40... Qxf5+ {[%clk 0:00:14.8]} 41. Kg2 {[%clk 0:00:06.4]} 41... Rf8 {[%clk
0:00:14.6]} 42. f4 {[%clk 0:00:06]} 42... Qxf4 {[%clk 0:00:13.6]} 43. Qxe6+
{[%clk 0:00:06.4]} 43... Kh8 {[%clk 0:00:15]} 44. Qxd5 {[%clk 0:00:07.1]} 44...
Qf1+ {[%clk 0:00:14.4]} 45. Kg3 {[%clk 0:00:07.8]} 45... Qg1+ {[%clk 0:00:14.2]}
46. Kh3 {[%clk 0:00:07.6]} 46... h6 {[%clk 0:00:11.7]} 47. e6 {[%clk 0:00:07.8]}
47... Rf2 {[%clk 0:00:11.3]} 48. Qd8+ {[%clk 0:00:06.4]} 48... Kh7 {[%clk
0:00:11.4]} 49. Qd3+ {[%clk 0:00:07.7]} 49... Kg8 {[%clk 0:00:12.3]} 50. Qd8+
{[%clk 0:00:08.3]} 50... Rf8 {[%clk 0:00:11.9]} 51. e7 {[%clk 0:00:05.2]} 51...
Qe3+ {[%clk 0:00:12.5]} 52. Kg2 {[%clk 0:00:04.4]} 52... Qe4+ {[%clk 0:00:12.3]}
53. Kg3 {[%clk 0:00:05]} 53... Qe5+ {[%clk 0:00:11.7]} 54. Kh3 {[%clk
0:00:05.8]} 54... Qh5+ {[%clk 0:00:12.2]} 55. Kg3 {[%clk 0:00:06.8]} 55... Qg5+
{[%clk 0:00:13.7]} 56. Kh3 {[%clk 0:00:08]} 56... Rxd8 {[%clk 0:00:15.3]} 57.
exd8=Q+ {[%clk 0:00:08.1]} 57... Qxd8 {[%clk 0:00:16.3]} 58. Kg3 {[%clk
0:00:07.7]} 58... Qd4 {[%clk 0:00:15.9]} 59. c6 {[%clk 0:00:07.6]} 59... Qd6+
{[%clk 0:00:15.9]} 60. Kh3 {[%clk 0:00:09.1]} 60... Qxc6 {[%clk 0:00:17.1]} 61.
Kg4 {[%clk 0:00:09.6]} 61... Qc4+ {[%clk 0:00:17.5]} 62. Kh5 {[%clk 0:00:11.5]}
62... Qxb4 {[%clk 0:00:18.6]} 63. h4 {[%clk 0:00:12.9]} 63... Qc5+ {[%clk
0:00:19]} 64. Kg6 {[%clk 0:00:13.8]} 64... Qd6+ {[%clk 0:00:20]} 65. Kh5 {[%clk
0:00:14.8]} 65... Qe5+ {[%clk 0:00:21]} 66. Kg6 {[%clk 0:00:15.9]} 66... Qf6+
{[%clk 0:00:21.2]} 67. Kh5 {[%clk 0:00:17.3]} 67... Qf5# {[%clk 0:00:21.4]} 0-1

[Event "*** Titled Tuesday Blitz"]
[Site "Chess.com"]
[Date "2018.04.03"]
[Round "9"]
[White "Jospem"]
[Black "1977Ivan"]
[Result "1-0"]
[WhiteElo "2732"]
[BlackElo "2479"]
[TimeControl "180+2"]
[EndTime "15:01:33 PDT"]
[Termination "Jospem won by resignation"]

1. e4 {[%clk 0:02:51.1]} 1... e5 {[%clk 0:03:00.2]} 2. Nf3 {[%clk 0:02:52]} 2...
Nc6 {[%clk 0:03:01.4]} 3. Bb5 {[%clk 0:02:53.6]} 3... a6 {[%clk 0:03:01.5]} 4.
Ba4 {[%clk 0:02:55.1]} 4... Nf6 {[%clk 0:03:01.9]} 5. O-O {[%clk 0:02:56.6]}
5... Be7 {[%clk 0:03:03.4]} 6. Re1 {[%clk 0:02:58.1]} 6... b5 {[%clk 0:03:03.4]}
7. Bb3 {[%clk 0:02:59.7]} 7... d6 {[%clk 0:03:04.8]} 8. c3 {[%clk 0:03:01.2]}
8... O-O {[%clk 0:03:02.4]} 9. h3 {[%clk 0:03:02.5]} 9... Nb8 {[%clk 0:03:03.2]}
10. d4 {[%clk 0:03:03.1]} 10... Nbd7 {[%clk 0:03:04.7]} 11. Nbd2 {[%clk
0:03:05]} 11... Bb7 {[%clk 0:03:05.3]} 12. Bc2 {[%clk 0:03:06.3]} 12... Re8
{[%clk 0:03:06.2]} 13. a4 {[%clk 0:03:07.8]} 13... Bf8 {[%clk 0:03:05.1]} 14.
Bd3 {[%clk 0:03:08.5]} 14... c6 {[%clk 0:03:01.5]} 15. b3 {[%clk 0:03:05.8]}
15... Nb6 {[%clk 0:03:00]} 16. Bf1 {[%clk 0:02:59.2]} 16... g6 {[%clk
0:02:56.3]} 17. Bb2 {[%clk 0:02:59]} 17... Bh6 {[%clk 0:02:53.3]} 18. dxe5
{[%clk 0:02:56.3]} 18... dxe5 {[%clk 0:02:53.8]} 19. c4 {[%clk 0:02:57.7]} 19...
bxa4 {[%clk 0:02:52.2]} 20. c5 {[%clk 0:02:52.7]} 20... Nbd7 {[%clk 0:02:51.4]}
21. b4 {[%clk 0:02:53.5]} 21... a5 {[%clk 0:02:52]} 22. Nc4 {[%clk 0:02:49.9]}
22... axb4 {[%clk 0:02:44.4]} 23. Nd6 {[%clk 0:02:44.6]} 23... Nxc5 {[%clk
0:02:26.9]} 24. Nxe8 {[%clk 0:02:44.2]} 24... Qxe8 {[%clk 0:02:27.4]} 25. Bxe5
{[%clk 0:02:43.8]} 25... Nfd7 {[%clk 0:02:23.8]} 26. Bd6 {[%clk 0:02:42]} 26...
Bg7 {[%clk 0:02:21.8]} 27. e5 {[%clk 0:02:42.5]} 27... b3 {[%clk 0:02:19.6]} 28.
Bc4 {[%clk 0:02:26.9]} 28... Ne6 {[%clk 0:02:19.5]} 29. Nd4 {[%clk 0:02:15.3]}
29... Nb6 {[%clk 0:02:04.6]} 30. Bxe6 {[%clk 0:02:00.1]} 30... fxe6 {[%clk
0:02:04.2]} 31. Nxb3 {[%clk 0:01:55.2]} 31... axb3 {[%clk 0:01:27.7]} 32. Qxb3
{[%clk 0:01:57.1]} 32... Qd8 {[%clk 0:01:24.6]} 33. Rab1 {[%clk 0:01:44.3]}
33... Ra6 {[%clk 0:01:24]} 34. Bc5 {[%clk 0:01:38.2]} 34... Nd7 {[%clk
0:01:22.9]} 35. Qxe6+ {[%clk 0:01:19.8]} 35... Kh8 {[%clk 0:01:23.2]} 36. Be7
{[%clk 0:01:02.4]} 36... Qe8 {[%clk 0:00:44.9]} 37. Rxb7 {[%clk 0:01:01.2]}
37... Nc5 {[%clk 0:00:45.4]} 38. Rb8 {[%clk 0:00:45.2]} 38... Qxb8 {[%clk
0:00:38.9]} 39. Bxc5 {[%clk 0:00:46.5]} 39... Ra5 {[%clk 0:00:37.3]} 40. Qd6
{[%clk 0:00:38]} 40... Qa8 {[%clk 0:00:34.4]} 41. Kh2 {[%clk 0:00:24.2]} 41...
Qe8 {[%clk 0:00:30.1]} 42. e6 {[%clk 0:00:23.5]} 42... h5 {[%clk 0:00:30.7]} 43.
g3 {[%clk 0:00:21.5]} 43... Ra8 {[%clk 0:00:21.1]} 44. Rd1 {[%clk 0:00:21.6]}
44... Kg8 {[%clk 0:00:20.8]} 45. Qd7 {[%clk 0:00:21.8]} 45... Bf6 {[%clk
0:00:20.8]} 46. Rd6 {[%clk 0:00:18]} 46... Rd8 {[%clk 0:00:16.7]} 47. Qxe8+
{[%clk 0:00:17.6]} 47... Rxe8 {[%clk 0:00:18.2]} 48. Rxc6 {[%clk 0:00:19.5]}
48... Kg7 {[%clk 0:00:18.7]} 49. f4 {[%clk 0:00:20.2]} 49... Bb2 {[%clk
0:00:18.7]} 50. g4 {[%clk 0:00:15]} 50... hxg4 {[%clk 0:00:18.9]} 51. hxg4
{[%clk 0:00:16.1]} 51... Kf6 {[%clk 0:00:20]} 52. e7+ {[%clk 0:00:16.3]} 52...
Kf7 {[%clk 0:00:20.8]} 53. g5 {[%clk 0:00:16.7]} 53... Rb8 {[%clk 0:00:16.7]}
54. Kg3 {[%clk 0:00:15.2]} 54... Ra8 {[%clk 0:00:14.9]} 55. Kg4 {[%clk
0:00:15.8]} 55... Bc3 {[%clk 0:00:12.5]} 56. Bd6 {[%clk 0:00:09.6]} 56... Be1
{[%clk 0:00:12.5]} 57. Rc2 {[%clk 0:00:08]} 57... Re8 {[%clk 0:00:10.9]} 58. Rh2
{[%clk 0:00:08.6]} 58... Bc3 {[%clk 0:00:11.7]} 59. Re2 {[%clk 0:00:08.3]} 59...
Rc8 {[%clk 0:00:11.4]} 60. Re4 {[%clk 0:00:08.3]} 60... Bg7 {[%clk 0:00:11.4]}
61. f5 {[%clk 0:00:09.3]} 61... gxf5+ {[%clk 0:00:11.3]} 62. Kxf5 {[%clk
0:00:11.2]} 62... Re8 {[%clk 0:00:12.3]} 63. g6+ {[%clk 0:00:12.1]} 63... Kg8
{[%clk 0:00:13.4]} 64. Ke6 {[%clk 0:00:14]} 64... Ra8 {[%clk 0:00:12.9]} 65. Rb4
{[%clk 0:00:13.8]} 65... Re8 {[%clk 0:00:06.5]} 66. Rb8 {[%clk 0:00:13.3]} 66...
Bf8 {[%clk 0:00:07.5]} 67. Rxe8 {[%clk 0:00:12.7]} 67... Kg7 {[%clk 0:00:07.3]}
68. exf8=Q+ {[%clk 0:00:13.7]} 1-0

[Event "*** Titled Tuesday Blitz"]
[Site "Chess.com"]
[Date "2018.04.03"]
[Round "9"]
[White "VerdeNotte"]
[Black "TregubovP"]
[Result "1/2-1/2"]
[WhiteElo "2641"]
[BlackElo "2548"]
[TimeControl "180+2"]
[EndTime "15:01:35 PDT"]
[Termination "Game drawn - insufficient material"]

1. d4 {[%clk 0:03:01.9]} 1... Nf6 {[%clk 0:02:51.6]} 2. g3 {[%clk 0:03:02.5]}
2... c5 {[%clk 0:02:46.3]} 3. dxc5 {[%clk 0:03:01.9]} 3... e6 {[%clk 0:02:45.8]}
4. Bg2 {[%clk 0:03:01.3]} 4... Bxc5 {[%clk 0:02:46]} 5. Nf3 {[%clk 0:03:01.9]}
5... O-O {[%clk 0:02:46.5]} 6. O-O {[%clk 0:03:02.7]} 6... d5 {[%clk 0:02:47.3]}
7. c4 {[%clk 0:03:03.4]} 7... Nc6 {[%clk 0:02:47]} 8. cxd5 {[%clk 0:03:01.7]}
8... exd5 {[%clk 0:02:47.3]} 9. a3 {[%clk 0:03:02.5]} 9... a5 {[%clk 0:02:46.6]}
10. Bg5 {[%clk 0:03:00.8]} 10... d4 {[%clk 0:02:39.5]} 11. Nbd2 {[%clk
0:03:00.9]} 11... Re8 {[%clk 0:02:35.5]} 12. Rc1 {[%clk 0:03:00.1]} 12... Ba7
{[%clk 0:02:34.8]} 13. Nb3 {[%clk 0:02:58.7]} 13... h6 {[%clk 0:02:34]} 14. Bh4
{[%clk 0:02:47.6]} 14... Qe7 {[%clk 0:02:24.8]} 15. Re1 {[%clk 0:02:38.8]} 15...
g5 {[%clk 0:02:21.5]} 16. Nxg5 {[%clk 0:02:38.7]} 16... hxg5 {[%clk 0:02:22.4]}
17. Bxg5 {[%clk 0:02:40.6]} 17... Qe5 {[%clk 0:02:22.5]} 18. Bf4 {[%clk
0:02:36.1]} 18... Qf5 {[%clk 0:02:22.9]} 19. Rxc6 {[%clk 0:02:19.8]} 19... bxc6
{[%clk 0:02:22.4]} 20. Bxc6 {[%clk 0:02:21.7]} 20... Ba6 {[%clk 0:02:03.5]} 21.
Nxd4 {[%clk 0:02:13.1]} 21... Bxd4 {[%clk 0:02:00.6]} 22. Qxd4 {[%clk
0:02:12.2]} 22... Rad8 {[%clk 0:01:41.4]} 23. Qb6 {[%clk 0:02:02.8]} 23... Bxe2
{[%clk 0:01:13.6]} 24. Bxe8 {[%clk 0:01:57.8]} 24... Rxe8 {[%clk 0:01:14.2]} 25.
Qc6 {[%clk 0:01:10.2]} 25... Kg7 {[%clk 0:01:13.8]} 26. Qc3 {[%clk 0:00:58.5]}
26... Kg6 {[%clk 0:01:03.8]} 27. b4 {[%clk 0:00:41.8]} 27... axb4 {[%clk
0:01:03.7]} 28. axb4 {[%clk 0:00:43]} 28... Bg4 {[%clk 0:00:52.7]} 29. Rxe8
{[%clk 0:00:40.9]} 29... Nxe8 {[%clk 0:00:53.7]} 30. Qc6+ {[%clk 0:00:41.3]}
30... Nf6 {[%clk 0:00:54.5]} 31. h4 {[%clk 0:00:27.3]} 31... Qb1+ {[%clk
0:00:46.9]} 32. Kh2 {[%clk 0:00:26.4]} 32... Qxb4 {[%clk 0:00:24]} 33. Be5
{[%clk 0:00:23.9]} 33... Qe7 {[%clk 0:00:24.7]} 34. Bd4 {[%clk 0:00:18.1]} 34...
Qe6 {[%clk 0:00:23.1]} 35. Qxe6 {[%clk 0:00:18.4]} 35... fxe6 {[%clk 0:00:21.1]}
36. Kg2 {[%clk 0:00:19.4]} 36... Be2 {[%clk 0:00:16.9]} 37. f3 {[%clk
0:00:20.1]} 37... Nd7 {[%clk 0:00:17.2]} 38. g4 {[%clk 0:00:20.6]} 38... e5
{[%clk 0:00:17.1]} 39. h5+ {[%clk 0:00:21.7]} 39... Kf6 {[%clk 0:00:17.7]} 40.
Bc3 {[%clk 0:00:21.7]} 40... Nc5 {[%clk 0:00:18.6]} 41. Kg3 {[%clk 0:00:19.9]}
41... Ke6 {[%clk 0:00:17.5]} 42. g5 {[%clk 0:00:16.7]} 42... Kf5 {[%clk
0:00:15.9]} 43. h6 {[%clk 0:00:12.2]} 43... Kg6 {[%clk 0:00:16.6]} 44. Bxe5
{[%clk 0:00:12.9]} 44... Bd3 {[%clk 0:00:17]} 45. Bf6 {[%clk 0:00:09.8]} 45...
Nd7 {[%clk 0:00:16.7]} 46. Bd8 {[%clk 0:00:10.1]} 46... Nf8 {[%clk 0:00:17.3]}
47. Be7 {[%clk 0:00:10.2]} 47... Ne6 {[%clk 0:00:17.8]} 48. f4 {[%clk
0:00:11.2]} 48... Bf5 {[%clk 0:00:16.8]} 49. Kf3 {[%clk 0:00:11.8]} 49... Kf7
{[%clk 0:00:17.1]} 50. Bf6 {[%clk 0:00:12.2]} 50... Nf8 {[%clk 0:00:16.1]} 51.
Ke3 {[%clk 0:00:12.5]} 51... Ng6 {[%clk 0:00:16.1]} 52. Kd4 {[%clk 0:00:12.8]}
52... Nh4 {[%clk 0:00:14.3]} 53. Ke5 {[%clk 0:00:13]} 53... Bh7 {[%clk
0:00:15.4]} 54. Kd5 {[%clk 0:00:09.3]} 54... Ng2 {[%clk 0:00:14.3]} 55. Be5
{[%clk 0:00:09.8]} 55... Nh4 {[%clk 0:00:11.4]} 56. Bc3 {[%clk 0:00:10]} 56...
Ng2 {[%clk 0:00:08.1]} 57. Ke5 {[%clk 0:00:10.2]} 57... Nh4 {[%clk 0:00:08.9]}
58. Kd4 {[%clk 0:00:08.1]} 58... Nf5+ {[%clk 0:00:07.1]} 59. Kd5 {[%clk
0:00:08.5]} 59... Kg6 {[%clk 0:00:06.7]} 60. Ke6 {[%clk 0:00:07.2]} 60... Bg8+
{[%clk 0:00:06]} 61. Kd7 {[%clk 0:00:08.6]} 61... Kf7 {[%clk 0:00:06.6]} 62. Bf6
{[%clk 0:00:07.8]} 62... Bh7 {[%clk 0:00:07.5]} 63. Kc6 {[%clk 0:00:08.8]} 63...
Nxh6 {[%clk 0:00:08]} 64. gxh6 {[%clk 0:00:07.7]} 64... Kxf6 {[%clk 0:00:09]}
65. Kd7 {[%clk 0:00:08.6]} 65... Kf5 {[%clk 0:00:08.9]} 66. Ke7 {[%clk 0:00:10]}
66... Kxf4 {[%clk 0:00:09.9]} 67. Kf6 {[%clk 0:00:11.3]} 67... Kg4 {[%clk
0:00:10.6]} 68. Kg7 {[%clk 0:00:12.5]} 68... Bd3 {[%clk 0:00:12]} 69. h7 {[%clk
0:00:12.6]} 69... Bxh7 {[%clk 0:00:13.4]} 1/2-1/2